{"text_format":"3","workbook":"xlsx","n_sheets":7,"sheets":["0. Preambles","1. P&G","2. H&S"," 3. Environmental","4. Works","5. Provisional Sums","6. SUMMARY"],"not_rendered":{"images":3,"defined_names":8},"read":"whole","date_system":"1900"}

{"sheet":"0. Preambles","index":0,"n_rows":317,"n_cols":5,"rows_kept":317,"merged":[[2,0,3,4]]}
[]
["NTCSA SIMMERPAN COMPLEX, GERMISTON"]
["SIMMERPAN DC WORKSHOP AND BATTERY ROOM REFURBISHMENT"]
[]
["Simmerpan DC Workshop and Battery room Refurbishment - Tender Activity Schedule"]
[]
["ITEM NO","DESCRIPTION","UNIT","FIXED COST PRICE","AMOUNT"]
[]
[null,"PREAMBLES"]
[]
[null,"MATERIALS AND WORKMANSHIP"]
[]
[null,"Samples of materials"]
[]
[null,"The Contractor shall furnish samples of materials and specimens of finishes as may be called for by the NTCSA Project Manager for his approval. "]
[]
[]
[null,"Workmanship samples"]
[]
[null,"The NTCSA  Project Manager may instruct the Contractor to furnish samples of workmanship for his approval.  Where the NTCSA  Project Manager requires an  assembly of various elements of the building or installation, which is not incorporated in the Works, "]
[]
[]
[]
[null,"the Contractor shall arrange such an assembly at "]
[null,"the Employer's expense and the contract value "]
[null,"shall be adjusted accordingly. "]
[]
[null,"The NTCSA  Project Manager may reject any "]
[null,"workmanship not corresponding with approved "]
[null,"samples.  Approved samples are to be kept on "]
[null,"site until the completion of the Works and "]
[null," thereafter removed if not required in the finished "]
[null,"work.  Adequate access and viewing facilities "]
[null,"shall be provided. "]
[]
[null,"TEMPORARY WORKS AND PLANT"]
[]
[null,"The Tenderer is deemed to have priced against "]
[null,"this item for all costs in respect of these "]
[null,"requirements."]
[]
[null,"Advertising"]
[]
[null,"All advertising rights on the site and the hoardings"]
[null," are reserved exclusively for the Employer. "]
[]
[null,"Plant, equipment, sheds and offices"]
[]
[null,"The Contractor shall provide, maintain and remove "]
[null,"on completion:"]
[null," "]
[null,"a) All plant, equipment, scaffolding, tools and the"]
[null,"like required for the due and proper fulfilment of the Works. "]
[]
[null,"b) Temporary sheds for the proper storage of "]
[null,"materials and the use of the Contractor's workers. "]
[]
[null,"Main noticeboard"]
[]
[null,"The Contractor shall provide a main noticeboard "]
[null,"of an approved design with the title of the project "]
[null,"and the names of the Employer, the Project "]
[null,"Manager, the Agents and the Contractor "]
[null,"signwritten thereon.  The NTCSA  Project Manager shall"]
[null," instruct the Contractor where the board is to be "]
[null,"erected. "]
[]
[null,"Temporary Services"]
[]
[null,"Water"]
[]
[null,"NTCSA  shall ensure that water is available on site. "]
[]
[null,"GENERAL"]
[]
[null,"Protection of the Works"]
[]
[null,"Specific protection measures required by the "]
[null,"Employer are described in detail in the Works "]
[null,"Information "]
[]
[null,"Protection of existing and/or partially occupied "]
[null,"Works"]
[]
[null,"The Contractor shall provide all reasonable "]
[null,"temporary measures to protect/ isolate the "]
[null,"existing and/ or sections of the occupied Works "]
[null,"and remove such measures on completion. "]
[]
[null,"Neglicence on the part of the Contractor shall"]
[null,"be charged by the Employer"]
[]
[null,"Site Security - Works Information"]
[]
[null,"The Contractor  shall ensure that the following requirements are adhered to at all times: "]
[]
[null,"a) All workers to be in company overalls, "]
[null,"safety helmets, boots, etc."]
[]
[null,"b) The following items will not be allowed on site:"]
[]
[null,"i) Fire arms or other dangerous weapons"]
[]
[null,"ii) Explosives"]
[]
[null,"iii) Liquor"]
[null,"iv) Narcotic drugs"]
[]
[null,"The employees of the Contractor shall be subjected "]
[null,"to security check."]
[]
[null,"The Contractor must ensure at all times that the "]
[null,"compliance with regards to safety and protection of the"]
[null,"employers property are adhered to"]
[]
[null,"Disturbance"]
[]
[null,"The Contractor must execute the Works with a "]
[null,"minimum and acceptable of disturbance to premises."]
[]
[null,"Works cleaning and clearing"]
[]
[null,"The Contractor shall regularly clean and clear "]
[null,"away all rubbish and excess materials as the "]
[null,"Works proceed and leave the Works in a clean "]
[null,"and satisfactory state for use and occupation in "]
[null,"terms of the agreement. "]
[]
[null,"Vermin"]
[]
[null,"The Contractor shall take all necessary "]
[null,"precautions to keep the Works and site free from "]
[null,"vermin and shall leave the Works vermin-free "]
[]
[null,"Occupational Health and Safety Act"]
[]
[null,"The Contractor shall for the duration of this contract be deemed to be the mandatory NTCSA  for the purposes of the Occupational Health and Safety Act No. 85 of 1993, and he shall prior to taking occupation of the site satisfy NTCSA  by means of written representations that he has fully compiled with the relevant requirements of the said act."]
[]
[null,"Acceptance by NTCSA  of the Contractor's written representations in terms of the above shall constitute an agreement in writing to the arrangements and procedures between the parties to ensure compliance by the Contractor with the provision of the act referred to therein, for the purpose of section 37(2) of the said act."]
[]
[null,"NTCSA  shall at all times have the right to summarily suspend the performance of the Contractor hereunder pending compliance by the Contractor with any requirement, regulation and direction referred to."]
[]
[null,"NTCSA  shall be entitled to set off against any amount owed by NTCSA  to the Contractor hereunder any loss or damage suffered by it as a result of the suspension of the contractors performance in the circumstances envisaged above."]
[]
[null,"The tenderer shall price for all necessary items to comply with the Occupational Health and Safety Act Specification."]
[]
[]
[null,"SUPPLEMENTARY DOCUMENTATION"]
[]
[null,"Labour Record"]
[]
[null,"At the end of each week the Contractor shall "]
[null,"provide the NTCSA  Project Manager with a written"]
[null," record, in schedule form, reflecting the number and "]
[null,"description of tradesmen and labourers "]
[null,"employed by him and all Sub-Contractors on the "]
[null,"Works each day including daily diaries."]
[]
[null,"Plant Record"]
[]
[null,"At the end of each week the Contractor shall "]
[null,"provide the NTCSA  Project Manager with a written "]
[null,"record, in schedule form, reflecting the number, type "]
[null,"and capacity of all plant, excluding hand tools, "]
[null,"currently used on the Works. "]
[]
[null,"Unauthorised Persons/ Workmen on Premises"]
[]
[null,"The Contractor shall at all times strictly exclude all "]
[null,"unauthorised persons from the Works and the "]
[null,"site and shall set up notice boards to that effect. "]
[]
[null,"Safety Helmets and Protective Clothing"]
[]
[null,"The Contractor shall take all necessary steps to "]
[null,"ensure that all workmen employed on the Works "]
[null,"comply with regulations regarding the wearing "]
[null,"of appropriate PPE "]
[]
[null,"GENERAL"]
[]
[null,"Media Releases, Advertising, etc."]
[]
[null,"The Contractor together with his Sub-Contractors "]
[null,"shall not, without the written consent of the "]
[null,"Employer, cause any statement or advertisement "]
[null,"to be printed, screened or aired by the media. "]
[]
[null,"Manufacturer's Recommendations"]
[]
[null,"All commodities are to be handled, stored, used, "]
[null,"applied and/or fixed in strict accordance with the "]
[null,"manufacturer's instructions and recommendations "]
[null,"and after consultation with the manufacturer's "]
[null,"authorised representative.  Should these "]
[null,"instructions and/ or recommendations conflict with "]
[null,"other specified requirements the Project Manager"]
[null," must be notified timeously."]
[]
[null,"Commodities to be New"]
[]
[null,"All commodities, goods, articles or materials "]
[null,"throughout the building are to be new so as to "]
[null,"ensure that they are likewise in perfect condition "]
[null,"when handed over at completion of the Work. "]
[]
[null,"Standard of Workmanship and Materials"]
[]
[null,"In the absence of detailed specifications for any "]
[null,"item or items, National Building Regulations, the "]
[null,"latest applicable South African Bureau of "]
[null,"Standards Specification, or where such does not "]
[null,"exist, then the latest applicable British Standard "]
[null,"Specification shall apply. "]
[]
[null,"Removal and Making Good of Temporary"]
[null,"Works, etc., on Completion"]
[]
[null,"The Contractor shall remove all temporary Works, "]
[null,"roads, services and the like used for this "]
[null,"Contract and shall make good to the entire "]
[null,"satisfaction of the NTCSA  Project Manager any damage resulting therefrom."]
[]
[null,"Signage"]
[]
[null,"All warning signage must be in English"]
[]
[null,"Environmental requirements"]
[]
[null,"All costs related to the compliance of the "]
[null,"Environmental Requirements must be allowed for "]
[null,"by the Contractor in the pricing document"]
[]
[null,"Proprietary branded products"]
[]
[null,"The Contractor shall take delivery of, handle, store, use, apply and/or fix all proprietary branded products in strict accordance with the manufacturer's instructions after consultation with the manufacturer's authorized representative."]
[]
[null,"Contractors Responsibility"]
[]
[null,"The Employer, the NTCSA  Project Manager and the other professional consultants shall not be responsible for any act or omission on the part of the Contractor which may result in any patent or latent defects, in materials or workmanship, breach or neglect of any local regulations.  The Contractor shall at times be responsible for any such neglect, deviation or wrong act, whether the same discovered before or after the final certificate, or any other Certificate, has been is approved."]
[]
[null,"Overtime"]
[]
[null,"Should overtime be required to be worked for any reason whatsoever, the costs of such overtime are to be borne by the Contractor unless the NTCSA  Project Manager has specifically authorized in writing, prior to the execution thereof, that costs for such overtime are to be borne by the Employer."]
[]
[null,"Construction instructions"]
[]
[null,"Contract instructions issued on site are to be recorded in writing"]
[]
[null,"Daily Record Book"]
[]
[null,"The Contractor shall record in triplicate in a suitable A4 size triplicate book kept at the site, a daily record book of work done, all site visits by the NTCSA  Project Manager  and other professional personnel and all events affecting the Works, such as progress, issue of plans, breakdown of "]
[null,"machinery, etc.  The labour, plant and material on site shall be recorded as well as work performed.  Entries must be made by the Contractor and must be signed and forwarded to the NTCSA  Project Manager for his counter-signature on a daily basis. "]
[]
[null,"Special Works/Direct Contracts"]
[]
[null," The Employer shall have the right to employ other Contractors (hereinafter referred to as 'Direct Contractors') to execute any special or other  Works whether contained in this Contract or not, concurrently with the work  being executed under this contract."]
[]
[null,"The Contractor shall not be entitled to any percentage, profit or discount on the value of any work executed by 'Direct Contractor's . The Contractor shall allow Direct Contractors, etc., to use, free of charge, the latrine accommodation and water and power supply on the site, and shall not in any way hinder or prevent the execution of their work."]
[]
[null,"Guarantees and Maintenance Manuals"]
[]
[null,"The Contractor shall obtain and hand over to the NTCSA  on Completion of any task or works, all relevant guarantees, any operating and maintenance instruction manuals, data or instructions required by the Project Manager or provided by manufacturer's, suppliers or Sub-Contractors."]
[]
[null,"The Contractor shall ensure that all warranties and guarantees received are fully ceded to the Employer."]
[]
[null,"The supply of all materials are deemed to include the following:"]
[]
[null,"Transport, conveying, cartage, carriage and delivery, etc."]
[]
[null,"Taking delivery, unloading, storing, unpacking, hoisting or lowering and handling"]
[null,"All applicable import taxes and duties."]
[]
[null,"All obligations arising out of the Activity schedule, and all costs and charges deemed necessary for complying with the terms and conditions herein."]
[null," "]
[null,"Removal and Making Good of Temporary Works, etc., on Completion"]
[]
[null,"The Contractor shall remove all (except where specifically stated otherwise) temporary Works, roads, services and the like used for this Contract and shall make good to the entire satisfaction of the NTCSA  Project Manager any damage resulting therefrom. "]
[null," "]
[null,"Making Good"]
[]
[null," All materials and workmanship in building up, making good, etc., are to match existing and where new materials abut existing, they are to be neatly jointed to same. "]
[null," "]
[null," 'Making good' existing work where disturbed or damaged shall mean the provision of the necessary new material to match existing and the necessary workmanship so that a complete restoration is achieved to the satisfaction of the NTCSA  Project Manager."]
[null," "]
[null,"Making good' where abutting walls, etc., are removed, shall mean the provision of the necessary material and workmanship in filling the gaps to match surrounding finishes so that a complete and perfect surface, continuous with surrounding surfaces and matching of same, is obtained to the NTCSA 's satisfaction."]
[null," "]
[null,"Mode of Procedure"]
[]
[null,"Not withstanding anything to the contrary contained herein the NTCSA  Project Manager at all times reserves the right to direct the order in which the various parts of the Contract are to be executed.  The Contractor shall give priority to any individual section or portion of the Works that, in the opinion of the NTCSA  Project Manager, requires to be expedited."]
[null," "]
[null,"Should it appear, in the NTCSA  Project Manager's opinion, that work in any area is not being executed in accordance with the requirements of the Contract Programme, the Contractor shall provide additional manpower and resources and shall work additional overtime and do everything else required to bring the work back to programme to the satisfaction of the NTCSA  Project Manager and to the Contractor's cost"]
[]
[null,"Method Statement"]
[]
[null,"The Tenderer shall produce, when required to do so by the NTCSA  Project Manager, a Method Statement outlining the methods of construction and labour and plant resources that he proposes to use in the execution of the Works.  Any approval given or observation made by the NTCSA  Project Manager shall not relieve the Contractor of his sole responsibility to adopt the methods of construction and to provide the labour and plant resources necessary for the due and proper timeous execution of the Works."]
[]
[null,"Encroachment"]
[]
[null,"During the course of the building operations, the Contractor shall be held entirely responsible for any encroachment onto any adjoining properties, buildings, etc., or servitudes and the cost of any remedial measures as required by the NTCSA  Project Manager shall be borne by the Contractor"]
[]
[null,"SHE requirements"]
[]
[null,"The Contractor shall take the necessary steps to ensure that all workmen employed on the Works comply with regulations regarding the wearing of Personal Protective Equipment as per Eskom's PPE Matrix."]
[]
[null,"The Contractor will provide mandatory OHS Training to all workmen before the commencement of the works. All Workers employed during the construction period shall also receive training before gaining access to the site. e.g. SHE Representative, First Aid, Fire Fighting, risk assessment."]
[]
[null,"The Contractor shall provide task specific training to his employees where a specific task is to be undertaken during the works period e.g. Working at heights, Supervisory (OHS legal liability)."]
[]
[]
[null,"The Contractor must provide the necessary communication tools in the case of emergency, these tools must be kept on site. "]
[]
[null,"The Contractor shall take the necessary provisions for an emergency. This includes First aid boxes, fire extinguisher and emergency alarm in the case of an emergency on site. These essentials must be stored in places that are easily accessible. "]
[]
[null,"The Contractor must take the necessary steps to manage Incidents that occur on site. (meetings, training)"]
[]
[null,"The Contractor is to appoint a competent person as a SHE Officer for the duration of the project. The SHE Officer must carry out all of the services and duties required."]

{"sheet":"1. P&G","index":1,"n_rows":68,"n_cols":6,"rows_kept":68,"merged":[[2,0,3,4],[6,0,7,0],[6,1,7,1],[6,2,7,2],[6,3,7,3]]}
[]
["NTCSA SIMMERPAN COMPLEX, GERMISTON"]
["SIMMERPAN DC WORKSHOP AND BATTERY ROOM REFURBISHMENT"]
[]
["Simmerpan DC Workshop and Battery room Refurbishment - Tender Activity Schedule"]
[]
["ITEM","REFERENCE","DESCRIPTION","UNIT","FIXED COST PRICE","TOTAL AMOUNT"]
[]
[]
[]
[null,null,"1. PRELIMINARY AND GENERAL"]
[]
[null,null,"(Applicable to the whole of the Works) "]
[]
[]
[null,null,"Notes to Tenderers:"]
[]
[]
[null,null,"The Contractor shall price Preliminary and General in respect of all payment required for any work, risk, contingency or obligation whatsoever, that is not described in the Activity Schedule and which is his responsibility under the Contract"]
[]
[]
[null,"SABS 1200A","PRELIMINARY AND GENERAL "]
[]
[]
[null,"SABS 1200A.8.3","SCHEDULED ITEMS FIXED CHARGE"]
[]
[1,"SABS 1200A.8.3.1\nSABS 1200A.8.4.1","Contractual requirements.(specify)","Sum",0,{"$f":"SUM(E27:E27)","v":0}]
[]
[]
[null,"SABS 1200A.8.3.2.2\nSABS 1200A.8.4.2.2","Facilities for Contractor:"]
[]
[{"$f":"A27+1","v":2},"SABS 1200A.8.3.2.2a\nSABS 1200A.8.4.2.2a","Offices and storage sheds.","Sum",0,{"$f":"SUM(E32:E32)","v":0}]
[{"$f":"A32+1","v":3},"SABS 1200A.8.3.2.2b\nSABS 1200A.8.4.2.2b","Workshops. ","Sum",0,{"$f":"SUM(E33:E33)","v":0}]
[]
[{"$f":"A33+1","v":4},"SABS 1200A.8.3.2.2c\nSABS 1200A.8.4.2.2c","Laboratories. ","Sum",0,{"$f":"SUM(E35:E35)","v":0}]
[]
[{"$f":"A35+1","v":5},"SABS 1200A.8.3.2.2d\nSABS 1200A.8.4.2.2d","Living accommodation. ","Sum",0,{"$f":"SUM(E37:E37)","v":0}]
[]
[{"$f":"A37+1","v":6},"SABS 1200A.8.3.2.2e\nSABS 1200A.8.4.2.2e","Ablution and latrine facilities (chemical portable toilets to be well maintained / serviced for the entire duration of the contract).","Sum",0,{"$f":"SUM(E39:E39)","v":0}]
[]
[{"$f":"A39+1","v":7},"SABS 1200A.8.3.2.2f\nSABS 1200A.8.4.2.2f","Tools and equipment. ","Sum",0,{"$f":"SUM(E41:E41)","v":0}]
[]
[]
[]
[]
[]
[null,null,"Total Carried forward",null,null,{"$f":"SUM(F21:F45)","v":0}]
[]
[]
[null,null,"Total Brought forward",null,null,{"$f":"F47","v":0}]
[]
[]
[{"$f":"A41+1","v":8},"SABS 1200A.8.3.2.2i\nSABS 1200A.8.4.2.2i","Access to the site.","Sum",0,{"$f":"SUM(E53:E53)","v":0}]
[]
[{"$f":"A53+1","v":9},"SABS 1200A.8.3.2.2j\nSABS 1200A.8.4.2.2j","Plant. ","Sum",0,{"$f":"SUM(E55:E55)","v":0}]
[{"$nulls":3},"Sum",0,{"$f":"SUM(E56:E56)","v":0}]
[{"$f":"A55+1","v":10},"SABS 1200A.8.4.3","Supervision for duration of construction. ","Sum",0,{"$f":"SUM(E57:E57)","v":0}]
[]
[{"$f":"A57+1","v":11},null,"Company and head office overhead costs for duration of construction. ","Sum",0,{"$f":"SUM(E59:E59)","v":0}]
[]
[{"$f":"A59+1","v":12},"SABS 1200A.8.3.4","Removal of entire site establishment, upon completion of the project, including making good and rehabilitation of areas utilized, all in accordance with the latest Environmental Management requirements.","Sum",0,{"$f":"SUM(E61:E61)","v":0}]
[]
[]
[]
[]
[]
[]
[null,null,"Total Carried Forward to Main Summary Page",null,null,{"$f":"SUM(F49:F67)","v":0}]

{"sheet":"2. H&S","index":2,"n_rows":121,"n_cols":6,"rows_kept":121,"merged":[[2,0,3,4],[6,0,7,0],[6,1,7,1],[6,2,7,2],[6,3,7,3],[6,4,7,4],[45,4,47,4],[91,4,93,4],[94,4,96,4]]}
[]
["NTCSA SIMMERPAN COMPLEX, GERMISTON"]
["SIMMERPAN DC WORKSHOP AND BATTERY ROOM REFURBISHMENT"]
[]
["Simmerpan DC Workshop and Battery room Refurbishment - Tender Activity Schedule"]
[]
["ITEM","DESCRIPTION","UNIT","FIXED COST PRICE","TIME RELATED RATE"]
[]
[]
[]
[null,"2. HEALTH AND SAFETY"]
[]
[null,"Contractor to price items applicable for the execution of the works under this contract."]
[]
[null,"SUPPLY OF ALL ITEMS OF PERSONAL PROTECTIVE CLOTHING / EQUIPMENT & ENSURE USE THEREOF FOR FULL COMPLIANCE"]
[]
[1,"Steel toe capped safety boots.","sum",0,{"$f":"SUM(D17:D17)","v":0}]
[]
[{"$f":"1+A17","v":2},"Overall - 2 piece suit with luminous strap for employees (at least two per employee).","sum",0,{"$f":"SUM(D19:D19)","v":0}]
[]
[{"$f":"1+A19","v":3},"Gloves as per risk assessment.","sum",0,{"$f":"SUM(D21:D21)","v":0}]
[]
[{"$f":"1+A21","v":4},"Hard hats with adjustable 3 point webbing chin strap as per SANS 1397","sum",0,{"$f":"SUM(D23:D23)","v":0}]
[]
[{"$f":"1+A23","v":5},"Climber's Hard hats with adjustable 3 point webbing chin strap as per SANS 1397","sum",0,{"$f":"SUM(D25:D25)","v":0}]
[]
[{"$f":"1+A25","v":6},"Ear protection (earplugs etc.) as per risk assessment","sum",0,{"$f":"SUM(D27:D27)","v":0}]
[]
[{"$f":"1+A27","v":7},"Eye protection appropriate to task performed","sum",0,{"$f":"SUM(D29:D29)","v":0}]
[{"$nulls":3},0]
[{"$f":"1+A29","v":8},"Dust Mask as per risk assessment","sum",0,{"$f":"SUM(D31:D31)","v":0}]
[]
[9,"Luminous high visibility safety vests","sum",0,{"$f":"SUM(D33:D33)","v":0}]
[]
[null,"Other applicable items - (Contractor to Specify): "]
[{"$f":"1+A33","v":10}]
[]
[{"$f":"1+A36","v":11}]
[]
[{"$f":"1+A38","v":12}]
[]
[{"$f":"1+A40","v":13}]
[]
[]
[]
[{"$nulls":4},{"$f":"SUM(E17:E44)","v":0}]
[null,"Total Carried forward",{"$nulls":3},{"$f":"SUM(F22:F45)","v":0}]
[]
[]
[null,"Total Brought forward",null,null,{"$f":"E46","v":0}]
[]
[]
[]
[null,"BARRICADING"]
[]
[null,"Supply, erection and maintenance of all temporary barricading which would be required during construction to make the site safe in accordance with the OHS Act, SHE spec"]
[]
[{"$f":"A42+1","v":14},"Barricading","sum",0,{"$f":"SUM(D58:D58)","v":0}]
[]
[{"$f":"1+A58","v":15},"Temporary fence barricading along perimeter of excavated area","sum",0,{"$f":"SUM(D60:D60)","v":0}]
[]
[]
[null,"AUDITS"]
[]
[null,"Availability of Principal Contractor resources & systems and provision of audits to ensure compliance"]
[]
[{"$f":"1+A60","v":16},"Third party legal Compliance Verification audits","sum",0,{"$f":"SUM(D67:D67)","v":0}]
[]
[]
[null,"SHE FILE"]
[]
[null,"Recording & availability of SHE File/Site"]
[]
[{"$f":"1+A67","v":17},"Compile and maintain SHE file","sum",0,{"$f":"SUM(D74:D74)","v":0}]
[]
[]
[null,"TRANSPORT"]
[]
[{"$f":"1+A74","v":18},"Transportation of employees in compliance with the Transportation of employees procedure","sum",0,{"$f":"SUM(D79:D79)","v":0}]
[]
[]
[null,"COMPLIANCE"]
[]
[{"$f":"1+A79","v":19},"Provision of all signage in terms of latest revision legislation, engagements with authorities where  necessary","sum",0,{"$f":"SUM(D84:D84)","v":0}]
{"$rows_empty":7}
[{"$nulls":4},{"$f":"SUM(E50:E84)","v":0}]
[null,"Total Carried forward",{"$nulls":3},{"$f":"SUM(F66:F91)","v":0}]
[]
[{"$nulls":4},{"$f":"E92","v":0}]
[null,"Total Brought forward"]
[]
[]
[]
[null,"HUMAN RESOURCES"]
[]
[{"$f":"A84+1","v":20},"Appointment of safety officer and costs associated with the appointment of Safety personnel and actual time spent on implementation, managing, documenting, monitoring, reviewing, internal  and external audits, incident investigations, reporting and mitigating safety related impacts and as per OHS Act and Client expected outputs","sum",0,{"$f":"SUM(D102:D102)","v":0}]
[]
[]
[]
[null,"OCCUPATIONAL HYGIENE"]
[]
[{"$f":"A102+1","v":21},"Conducting Health Assessments including ergonomics, dust survey (crystalline  silica analysis, thermal stress survey (heat and cold), noise survey and all generating equipment (where necessary).","sum",0,{"$f":"SUM(D108:D108)","v":0}]
[]
[null,"OCCUPATIONAL HEALTH"]
[]
[{"$f":"A108+1","v":22},"Pre-employment medical screening","sum",0,{"$f":"SUM(D112:D112)","v":0}]
[]
[{"$f":"A112+1","v":23},"Periodic Medical Screening (follow-up on identified medical condition, based on the project duration)","sum",0,{"$f":"SUM(D114:D114)","v":0}]
[]
[{"$f":"A114+1","v":24},"Exit Medical Screening","sum",0,{"$f":"SUM(D116:D116)","v":0}]
[]
[]
[]
[]
[null,"Total Carried Forward to Main Summary Page",null,null,{"$f":"SUM(E95:E116)","v":0}]

{"sheet":" 3. Environmental","index":3,"n_rows":80,"n_cols":5,"rows_kept":80,"merged":[[2,0,3,4],[6,0,7,0],[6,1,7,1],[6,2,7,2],[6,3,7,3],[6,4,7,4],[48,4,50,4],[52,4,54,4]]}
[]
["NTCSA SIMMERPAN COMPLEX, GERMISTON"]
["SIMMERPAN DC WORKSHOP AND BATTERY ROOM REFURBISHMENT"]
[]
["Simmerpan DC Workshop and Battery room Refurbishment - Tender Activity Schedule"]
[]
["ITEM","DESCRIPTION","UNIT","FIXED COST PRICE","AMOUNT"]
[]
[]
[]
[null,"3. ENVIRONMENTAL WORKS"]
[]
[null,"Contractor to price items applicable for the execution of the works under this contract."]
[]
[]
[null,"ENVIRONMENTAL MEASUREMENT AND PAYMENT AS PER THE SITE INFORMATION"]
[]
[{"$f":"1","v":1},"Environmental monitoring - dust, noise and water  (ad hoc)","Sum",0,{"$f":"SUM(D18:D18)","v":0}]
[]
[{"$f":"A18+1","v":2},"Dealing with sensitive vegetation (transplantation, search and rescue)","sum",0,{"$f":"SUM(D20:D20)","v":0}]
[]
[{"$f":"1+A20","v":3},"Fire management and control measures","sum",0,{"$f":"SUM(D22:D22)","v":0}]
[]
[]
[null,"WASTE MANAGEMENT (COSTS ASSOCIATED WITH MANAGEMENT OF GENERAL, HAZARDOUS WASTE, ETC.)"]
[]
[]
[{"$f":"A22+1","v":4},"Waste Bins, skips & lids and covers","sum",0,{"$f":"SUM(D28:D28)","v":0}]
[]
[{"$f":"1+A28","v":5},"General waste collection and disposal at a registered landfill site ","sum",0,{"$f":"SUM(D30:D30)","v":0}]
[]
[{"$f":"1+A30","v":6},"Hazardous waste transportation and disposal at a registered facility","sum",0,{"$f":"SUM(D32:D32)","v":0}]
[]
[]
[{"$f":"A32+1","v":7},"Costs associated with the repair and maintenance of all existing sewerage pipes where necessary.  ","sum",0,{"$f":"SUM(D35:D35)","v":0}]
[]
[]
[null,"WASH BAYS (WHERE NEEDED OR NECESSARY)"]
[]
[{"$f":"1+A35","v":8},"Temporary setting up of  wash bays & workshops","sum",0,{"$f":"SUM(D40:D40)","v":0}]
[]
[{"$f":"A40+1","v":9},"Oil and water separator","sum",0,{"$f":"SUM(D42:D42)","v":0}]
[]
[]
[null,"POLLUTION PREVENTION AND CONTROL"]
[]
[{"$f":"A42+1","v":10},"Costs associated with dust suppression and remediation","sum",0,{"$f":"SUM(D47:D47)","v":0}]
[]
[{"$nulls":4},{"$f":"SUM(E15:E48)","v":0}]
[]
[null,"Total Carried forward"]
[]
[{"$nulls":4},{"$f":"E49","v":0}]
[null,"Total Brought forward"]
[]
[]
[]
[{"$f":"A47+1","v":11},"Oil spill kits","sum",0,{"$f":"SUM(D58:D58)","v":0}]
[]
[{"$f":"A58+1","v":12},"Drip trays","sum",0,{"$f":"SUM(D60:D60)","v":0}]
[]
[{"$f":"1+A60","v":13},"Temporal Containment of Waste (where necessary)","sum",0,{"$f":"SUM(D62:D62)","v":0}]
[]
[]
[null,"LAND MANAGEMENT"]
[]
[{"$f":"1+A62","v":14},"Rehabilitation: Costs associated with the rehabilitation of disturbed land during construction.","sum",0,{"$f":"SUM(D67:D67)","v":0}]
[]
[{"$f":"1+A67","v":15},"Erosion control measures (where needed)","sum",0,{"$f":"SUM(D69:D69)","v":0}]
[]
[{"$f":"1+A69","v":16},"Maintenance of access road (where needed)","sum",0,{"$f":"SUM(D71:D71)","v":0}]
[]
[]
[null,"HUMAN RESOURCES"]
[]
[{"$f":"1+A71","v":17},"Appointment of Environmental Officer (EO) where applicable costs associated with the appointment of environmental personnel and actual time spent on implementation, managing, documenting, monitoring, reviewing, internal and external audits, incident investigations and mitigating environmentally related impacts and rehabilitation (air, water, waste, land)","sum",0,{"$f":"SUM(D76:D76)","v":0}]
[]
[{"$f":"1+A76","v":18},"Appointment of Quality Officer (QO) where applicable costs associated with the appointment of quality personnel and actual time spent on implementation, managing, documenting, monitoring, reviewing, internal and external audits.","sum",0,{"$f":"SUM(D78:D78)","v":0}]
[]
[null,"Total Carried Forward to Main Summary Page",null,null,{"$f":"SUM(E53:E78)","v":0}]

{"sheet":"4. Works","index":4,"n_rows":116,"n_cols":5,"rows_kept":116,"merged":[[2,0,3,4]]}
[]
["NTCSA SIMMERPAN COMPLEX, GERMISTON"]
["SIMMERPAN DC WORKSHOP AND BATTERY ROOM REFURBISHMENT"]
[]
["Simmerpan DC Workshop and Battery room Refurbishment - Tender Activity Schedule"]
[]
["ITEM","DESCRIPTION","UNIT","FIXED COST PRICE","AMOUNT"]
[]
[null,"The Tenderer is referred to the relevant clauses in the Model Preambles for Trades and to the Supplementary Preambles"]
[]
[null,"GUIDANCE BEFORE PRICING AND MEASURING "]
[]
[null,"The NEC's approach to the Preliminary & General (P&G) section of the Activity Schedule assumes use will be made of method related charges for project applied for providing the works based on durations shown in the Accepted Programme. Fixed charges for the use of Equipment that are required throughout the construction phase (Please also refer to Data by Contractror and Shorter Schedule of Componements), "]
[]
[null,"NOTE:"]
[]
[null,"All waste material must be disposed of in terms of local authority regulations."]
[]
[null,"Rate Approvals:"]
[]
[null,"The tenderer is advised that any rate that is required for new work must include the following breakdown:"]
[]
[null,"Material, labour, plant, wastage, transport and profit."]
[]
[null,"Rate approvals must be authorised by NTCSA Real Estate Project Manager prior to work being carried out."]
[null,"The Contractor is required to take all necessary precautions,  where appropriate, to prevent dust blowing from construction material and spoil heaps and/ , the cost of which must be included in the tendered rates."]
[]
[null,"The contractor to cart away / dispose away any rubble that is to be removed and stockpiled to a dumping site which is approved by local authorities. The costs for transporting, preparing the stockpile site and stockpiling shall be deemed to be included in the rates."]
{"$rows_empty":9}
[null,"Contractor to price items applicable for the execution of the works under this contract."]
[]
[null,"The Tenderer shall insert the amount required against each item which he wishes to price and not insert a lump sum covering a series of items. Only such priced items shall be considered in respect of any adjustment to the Contract Sum.  Items left unpriced will be understood to be covered in the rates for other items throughout these Price Schedule."]
[]
[null,"CONCEPT DESIGN"]
[]
[1,"Submission of a concept design report with associated preliminary drawings and data for only  Battery Water System","Sum",0,{"$f":"D44","v":0}]
[]
[null,"DETAILED DESIGN AND ACCEPTANCE"]
[]
[2,"Accepted detailed design and submission of design report with associated drawings and data for all the works","Sum",0,{"$f":"D48","v":0}]
[]
[null,"DECOMMISIONING, REMOVAL AND DISPOSAL OF ALL WORKS AS PER SCOPE"]
[]
[3,"Decommissioning of all  Electrical and Mechanical works ","Sum",0,{"$f":"D52","v":0}]
[]
[4,"Disposal of all removed  Electrical and Mechanical works items to an approved site.","Sum",0,{"$f":"D54","v":0}]
[]
[5,"Demolish all battery stands , floor and wall tiles and cart away all rubble to an approved site. ","Sum",0,{"$f":"D56","v":0}]
[]
[6,"Demin water system- Remove,dispose away and make good","Sum",0,{"$f":"D58","v":0}]
[]
[7,"Compressed air pipeline- Remove, disposed away  and make good","Sum",0,{"$f":"D60","v":0}]
[]
[8,"Remove existing safety showers, dispose away,","Sum",0,{"$f":"D62","v":0}]
[]
[null,"FINISHES AS PER SCOPE OF WORKS"]
[]
[9,"Floor preparation and epoxy coating in Battery rooms","Sum",0,{"$f":"D66","v":0}]
[]
[10,"Prepare and painting of  walls in all rooms","Sum",0,{"$f":"D68","v":0}]
[]
[11,"Deep-cleaning of floors","Sum",0,{"$f":"D70","v":0}]
[]
[null,"SUPPLY INSTALL ANS COMMISIONING OF ALL ELECTRICAL WORKS AS PER SCOPE"]
[]
[12,"Supply and install battery stands","Sum",0,{"$f":"D74","v":0}]
[]
[13,"Supply and install complete electrical works","Sum",0,{"$f":"D76","v":0}]
[]
[14,"Test and Issue electrical COC","Sum",0,{"$f":"D78","v":0}]
[]
[null,"SUPPLY, INSTALL AND COMMISIONING OF MECHANICAL WORKS AS PER SCOPE"]
[]
[15,"Supply and Install fire detection system as per the design","Sum",0,{"$f":"D82","v":0}]
[]
[16,"Supply and Install fire extinguishes including all signages as per the design","Sum",0,{"$f":"D84","v":0}]
[]
[17,"Remove, Supply and Install all doors  as per scope of works.","Sum",0,{"$f":"D86","v":0}]
[]
[18,"DC Workshop - Supply and install Air conditioning","Sum",0,{"$f":"D88","v":0}]
[]
[19,"DC Workshop -Comissioning and Issue Air conditioning COC","Sum",0,{"$f":"D90","v":0}]
[]
[20,"Battery room and Air handling room- Supply, Install extraction and air conditioning system (including ducting)","Sum",0,{"$f":"D92","v":0}]
[]
[21,"Battery room and Air handling room-Comissioning and Issue Air conditioning COC","Sum",0,{"$f":"D94","v":0}]
[]
[22,"Commisioning of fire systems interfacing HVAC system and battery chargers for the entire building including mimic panel at zero building","Sum",0,{"$f":"D96","v":0}]
[]
[null,"SUPPLY, INSTALL AND COMMISIONING OF NEW SAFETY SHOWERS AS PER SCOPE"]
[]
[23,"Supply and Install New Safety Shower and washing basin","Sum",0,{"$f":"D100","v":0}]
[]
[24,"Commisioning of safety showers and wash hand basin.","Sum",0,{"$f":"D102","v":0}]
[]
[null,"SUPPLY, INSTALL AND COMMISIONING OF BATTERY WATER SYSTEM AS PER SCOPE"]
[]
[26,"Supply, Install and commisioning of the battery water system","Sum",0,{"$f":"D106","v":0}]
[]
[27,"Battery room - Supply and Install 2 hoursfire coating on required cables/pipes/Ducts entering/exiting the battery room","Sum",0,{"$f":"D108","v":0}]
[]
[null,"TRAINING AND DOCUMENTATION"]
[]
[28,"Training offered to maintenance and operating","Sum",0,{"$f":"D112","v":0}]
[]
[29,"Documentation handover package","Sum",0,{"$f":"D114","v":0}]
[]
[null,"Total Carried Forward to Main Summary Page",null,null,{"$f":"SUM(E11:E114)","v":0}]

{"sheet":"5. Provisional Sums","index":5,"n_rows":17,"n_cols":8,"rows_kept":17,"merged":[[3,1,4,7],[6,1,7,1],[6,2,7,2],[6,3,7,3],[6,4,7,4],[6,5,7,5],[6,6,7,6],[6,7,7,7]]}
[]
[null,"NTCSA SIMMERPAN COMPLEX, GERMISTON"]
[]
[null,"SIMMERPAN DC WORKSHOP AND BATTERY ROOM REFURBISHMENT"]
[]
[null,"Simmerpan DC Workshop and Battery room Refurbishment - Tender Activity Schedule"]
[null,"ITEM","REFERENCE","DESCRIPTION","UNIT","QTY","RATE","AMOUNT"]
[]
[]
[]
[{"$nulls":3},"PROVISIONAL SUMS"]
[]
[{"$nulls":3},"PROVISIONAL ITEMS"]
[]
[null,1,null,"Allow the sum of R 300 000.00 for additional work, as per the Eskom Project Manager's instruction. (Provisional)","Sum",{"v":1,"d":"1.00"},{"v":300000,"d":"R300,000.00"},{"$f":"F15*G15","v":{"v":300000,"d":"R300,000.00"}}]
[]
[{"$nulls":3},"Total Carried Forward to Main Summary Page",{"$nulls":3},{"$f":"SUM(H11:H16)","v":{"v":300000,"d":"R 300,000.00"}}]

{"sheet":"6. SUMMARY","index":6,"n_rows":33,"n_cols":7,"rows_kept":33,"merged":[[2,3,2,4],[12,1,14,1],[12,3,14,4],[12,5,14,6]]}
[]
[null,"EMPLOYER:",null,"NTCSA REAL ESTATE"]
[null,"PROJECT NAME:",null,"SIMMERPAN DC WORKSHOP AND BATTERY ROOM REFURBISHMENT"]
[null,"PROJECT LOCATION:",null,"SIMMERPAN COMPLEX, GERMISTON"]
[null,"DISCIPLINE / TRADE:",null,"ELECTRICAL, MECHANICAL AND BUILDING"]
[]
[null,"CONTRACT DETAILS:",null,"NEC3 ECC: PRICING OPTION A"]
[]
[null,"MAIN OFFER (R)"]
[]
[null,"FINAL SUMMARY "]
[]
[null,"WORKSHEET NUMBER",null,"DESCRIPTION",null,"AMOUNT"]
[]
[]
[]
[null,{"$f":"IF(C17<>\"\",1,\"\")","v":1},"PRELIMINARY AND GENERAL",null,null,"R",{"$f":"'1. P&G'!F68","v":0}]
[]
[null,{"$f":"IF(C19<>\"\",B17+1,\"\")","v":2},"HEALTH AND SAFETY",null,null,{"$f":"IF(B19<>\"\",\"R\",\"\")","v":"R"},{"$f":"'2. H&S'!E121","v":0}]
[]
[null,{"$f":"IF(C21<>\"\",B19+1,\"\")","v":3},"ENVIRONMENTAL WORKS",null,null,{"$f":"IF(B21<>\"\",\"R\",\"\")","v":"R"},{"$f":"' 3. Environmental'!E80","v":0}]
[]
[null,{"$f":"IF(C23<>\"\",B21+1,\"\")","v":4},"WORKS",null,null,{"$f":"IF(B23<>\"\",\"R\",\"\")","v":"R"},{"$f":"'4. Works'!E116","v":0}]
[]
[null,{"$f":"IF(C25<>\"\",B23+1,\"\")","v":5},"PROVISIONAL SUM",null,null,{"$f":"IF(B25<>\"\",\"R\",\"\")","v":"R"},{"$f":"'5. Provisional Sums'!H17","v":{"v":300000,"d":"300,000.00"}}]
[]
[]
[null,{"$f":"IF(C28<>\"\",#REF!+1,\"\")","v":""},{"$nulls":3},{"$f":"IF(B28<>\"\",\"R\",\"\")","v":""}]
[]
[null,{"$f":"IF(C30<>\"\",B28+1,\"\")","v":""},{"$nulls":3},{"$f":"IF(B30<>\"\",\"R\",\"\")","v":""}]
[]
[]
[{"$nulls":4},"SUBTOTAL  CARRIED TO FORM OF OFFER  (EXCL UDING VAT)","R",{"$f":"SUM(G17:G27)","v":{"v":300000,"d":"300,000.00"}}]